bitfinex/quotes_ETHUSD_20250519
["timestamp","ask_amount","ask_price","bid_price","bid_amount"]
[1747667219964,4.07781083,2452.3,2451.9,5.04377348]
[1747667220171,4.56676136,2452.5,2452.0,4.07829526]
[1747667220394,4.56676136,2452.5,2452.2,0.7909]
[1747667220538,4.56676136,2452.5,2452.3,4.07780451]
[1747667220739,4.07673058,2453.0,2452.3,0.8238]
[1747667220740,4.07679504,2453.0,2452.3,0.8238]
[1747667221051,4.56676136,2453.1,2453.0,0.8238]
[1747667221243,4.07599786,2453.4,2453.0,0.8238]
[1747667221448,4.07615501,2453.3,2453.0,0.8238]
[1747667221840,4.56676136,2453.6,2453.0,0.8238]
[1747667222072,0.34154521,2453.5,2453.1,4.24767723]
[1747667222424,0.34154521,2453.5,2453.2,4.07630849]
[1747667222623,0.34154521,2453.5,2453.2,4.85260186]
[1747667222894,0.34154521,2453.5,2453.3,4.07601421]
[1747667223065,0.34154521,2453.5,2453.4,0.48524142]
[1747667223268,4.07539431,2453.8,2453.4,0.48524142]
[1747667223565,4.0754017,2453.8,2453.4,0.48524142]
[1747667223765,4.07514568,2453.9,2453.2,0.7764]
[1747667224126,4.07564395,2453.6,2453.5,0.13045973]
[1747667224300,9.40650531,2453.6,2453.5,0.13045973]
[1747667224469,21.20951889,2453.6,2453.5,0.13045973]
[1747667225078,4.07614233,2453.3,2453.2,0.11441589]
[1747667225278,8.64290369,2453.3,2453.2,0.11441589]
[1747667225475,17.05290369,2453.3,2453.2,0.11441589]
[1747667226781,17.05290369,2453.3,2452.6,4.07723862]
[1747667226782,4.07663737,2453.1,2452.6,4.07723862]
[1747667226984,21.38976136,2453.3,2452.5,0.91441589]
[1747667227350,4.0765831,2453.1,2452.6,4.0772309]
[1747667227565,8.403,2453.2,2452.5,0.91441589]
[1747667227768,12.47931554,2453.2,2452.7,4.07705606]
[1747667228276,4.07631554,2453.2,2452.7,4.07705606]
[1747667228442,4.11737664,2453.2,2452.8,0.94582129]
[1747667228647,4.0767328,2453.0,2452.8,0.13038511]
[1747667229176,4.07644903,2453.2,2452.8,0.13038511]
[1747667229474,4.07630906,2453.2,2452.8,0.13038511]
[1747667229784,4.07658123,2453.1,2452.9,0.7548]
[1747667229938,4.07633042,2453.2,2452.9,0.7548]
[1747667230138,8.64290837,2453.3,2452.9,4.96198018]
[1747667230382,4.56676136,2453.3,2453.0,0.49619802]
[1747667230578,8.64299924,2453.3,2453.0,0.49619802]
[1747667230777,4.56676136,2453.3,2453.0,0.49619802]
[1747667230966,8.64299237,2453.3,2453.0,0.49619802]
[1747667231167,4.56676136,2453.3,2453.1,0.13038511]
[1747667231475,8.64209986,2453.8,2453.3,4.87219125]
[1747667231688,4.56676136,2453.8,2453.3,4.8723031]
[1747667231878,4.56676136,2453.8,2453.5,4.07573655]
[1747667232042,4.56676136,2453.8,2453.4,4.07589324]
[1747667232242,4.56676136,2453.8,2453.3,0.7962]
[1747667232563,9.39397559,2453.8,2453.1,8.54238511]
[1747667232766,4.07621868,2453.3,2453.2,0.11441589]
[1747667232964,4.07573347,2453.6,2453.2,0.11441589]
[1747667233170,12.95076136,2453.8,2453.2,1.47061007]
[1747667233342,4.07599064,2453.4,2453.2,0.06441589]
[1747667233543,4.07597221,2453.5,2453.2,0.06441589]
[1747667233747,4.07597619,2453.4,2453.3,0.13036876]
[1747667233944,4.07592919,2453.5,2453.3,0.13036876]
[1747667234168,4.07597619,2453.4,2453.3,0.13036876]
[1747667234386,4.0758838,2453.5,2453.3,0.13036876]
[1747667234590,4.07577217,2453.6,2453.3,0.13036876]
[1747667234798,4.07582942,2453.5,2453.3,0.13036876]
[1747667235162,4.07597619,2453.4,2453.3,0.13036876]
[1747667235364,4.07577104,2453.6,2453.3,0.13036876]
[1747667235563,4.56676136,2453.8,2453.2,4.07628075]
[1747667235871,4.07582613,2453.5,2453.3,1.24882808]
[1747667236052,4.07582613,2453.5,2453.1,12.48844472]
[1747667236253,4.07552129,2453.7,2453.1,12.48844472]
[1747667236254,4.07571995,2453.6,2453.1,12.48844472]
[1747667236455,4.07571995,2453.6,2453.2,4.0763012]
[1747667236655,4.0758102,2453.5,2453.1,8.412]
[1747667236870,4.07600177,2453.4,2453.1,8.412]
[1747667237064,4.07627307,2453.3,2453.0,0.7978]
[1747667237274,4.07647466,2453.1,2453.0,0.7978]
[1747667237469,4.07581006,2453.5,2452.7,0.93975564]
[1747667237470,4.07673466,2453.0,2452.7,0.93975564]
[1747667237681,4.07686899,2452.9,2452.7,0.93975564]
[1747667237997,4.07676163,2453.0,2452.8,0.13039393]
[1747667238310,4.07647267,2453.2,2452.8,0.13039393]
[1747667238483,4.07647018,2453.2,2452.8,0.13039393]
[1747667238801,4.07680704,2452.9,2452.8,0.13039393]
[1747667239171,4.56676136,2453.4,2452.8,0.13039393]
[1747667239389,4.0766312,2453.1,2452.8,0.13039393]
[1747667239593,4.56676136,2453.4,2452.9,4.07680694]
[1747667239803,4.0761702,2453.3,2452.9,4.07680694]
[1747667239967,8.6428021,2453.4,2452.9,4.07680694]
[1747667240167,4.07620928,2453.3,2452.9,4.07680694]
[1747667240798,8.64276574,2453.4,2453.0,4.07652948]
[1747667240980,4.56676136,2453.4,2453.0,5.26121822]
[1747667241183,8.64284154,2453.4,2453.1,0.7861]
[1747667241489,1.64007201,2455.9,2453.1,13.27350218]
[1747667241490,4.07560116,2453.7,2453.1,13.27350218]
[1747667241712,4.07541662,2453.8,2453.3,4.07603915]
[1747667242308,4.07541662,2453.8,2453.4,0.13039393]
[1747667242608,4.07548146,2453.7,2453.4,0.13039393]
[1747667243103,4.07579166,2453.6,2453.4,0.13039393]
[1747667243421,4.07531176,2453.8,2453.1,9.1971]
[1747667243718,4.56676136,2453.9,2453.1,9.1971]
[1747667243719,4.07587267,2453.5,2453.1,9.1971]
[1747667243921,4.07573529,2453.6,2453.1,15.15201269]
[1747667244311,4.07621164,2453.3,2453.1,0.7861]
[1747667244512,0.04106815,2453.2,2452.9,0.16125564]
[1747667244669,4.07664084,2453.0,2452.9,0.16125564]
[1747667245198,0.7914,2453.6,2452.8,0.818]
[1747667245199,4.07624026,2453.3,2452.8,4.89489872]
[1747667245372,4.07642172,2453.2,2452.8,4.31679023]
[1747667245581,4.07614233,2453.3,2452.8,0.818]
[1747667245888,4.07644829,2453.2,2452.8,0.818]
[1747667246102,4.07654074,2453.1,2452.8,0.818]
[1747667247075,4.07654074,2453.1,2452.9,0.13039288]
[1747667247310,4.82596543,2454.4,2453.0,8.373]
[1747667247607,4.07581329,2453.5,2453.2,0.8168]
[1747667247988,4.07547784,2453.7,2453.2,4.89310553]
[1747667248175,4.0760967,2453.4,2453.2,0.8168]
[1747667248910,4.07571079,2453.6,2453.3,0.13039288]
[1747667248911,4.07564395,2453.6,2453.3,0.13039288]
[1747667249095,4.07550816,2453.7,2453.3,0.13039288]
[1747667249096,4.07597619,2453.4,2453.3,0.13039288]
[1747667249890,4.07584776,2453.5,2452.7,9.29925564]
[1747667249891,4.07564395,2453.6,2452.7,13.37635749]
[1747667250187,4.07613193,2453.4,2452.8,4.07690463]
[1747667250399,4.07621248,2453.3,2452.8,4.07690463]
[1747667250600,8.64297384,2453.3,2452.8,4.07690463]
[1747667251114,4.56676136,2453.3,2453.0,4.07653589]
[1747667251474,4.56676136,2453.3,2452.9,0.13038686]
[1747667251682,4.56676136,2453.3,2452.9,4.20710328]
[1747667252314,8.64293048,2453.3,2452.9,4.20710328]
[1747667252815,8.64299478,2453.3,2452.9,0.13038686]
[1747667253218,4.0763951,2453.2,2452.9,0.13038686]
[1747667253423,8.64294453,2453.3,2452.9,0.13038686]
[1747667253625,4.56676136,2453.3,2453.0,0.13038686]
[1747667253813,4.56676136,2453.3,2453.0,4.20687519]
[1747667254317,4.56676136,2453.3,2453.0,0.13038686]
[1747667254503,8.64290452,2453.3,2453.0,0.13038686]
[1747667255008,8.64290452,2453.3,2453.1,0.13038686]
[1747667255624,4.56676136,2453.3,2453.1,0.13038686]
[1747667256123,4.56676136,2453.3,2453.2,0.13038686]
[1747667256326,8.64290369,2453.3,2453.2,0.13038686]
[1747667257641,4.56676136,2453.3,2453.2,0.13038686]
[1747667257797,8.64290369,2453.3,2453.2,0.13038686]
[1747667258430,4.56676136,2453.3,2453.2,0.13038686]
[1747667259222,4.56676136,2453.3,2453.2,4.20669535]
[1747667259528,4.56676136,2453.3,2453.2,5.81610358]
[1747667260327,4.56676136,2453.3,2453.2,1.73979509]
[1747667260530,4.56676136,2453.3,2453.2,5.81610358]
[1747667261042,8.64217503,2453.8,2453.3,4.07609096]
[1747667261337,4.56676136,2453.8,2453.4,4.0759041]
[1747667261547,8.64209961,2453.8,2453.4,4.0759041]
[1747667261846,8.64209961,2453.8,2453.3,4.07604427]
[1747667262139,8.64209961,2453.8,2453.5,0.13038686]
[1747667262907,4.07549993,2453.7,2453.5,0.13038686]
[1747667263436,4.56676136,2453.8,2453.5,0.13038686]
[1747667263636,8.64216279,2453.8,2453.6,0.13038686]
[1747667264016,4.07547784,2453.7,2453.6,0.13038686]
[1747667264759,4.56676136,2453.8,2453.6,0.13038686]
[1747667264909,8.64216562,2453.8,2453.6,0.13038686]
[1747667265113,8.64216562,2453.8,2453.7,0.13038686]
[1747667265313,4.56676136,2453.8,2453.7,0.13038686]
[1747667266040,8.64207312,2453.8,2453.7,0.13038686]
[1747667266244,4.56676136,2453.8,2453.7,0.13038686]
[1747667266448,8.64207312,2453.8,2453.7,0.13038686]
[1747667266674,4.56676136,2453.8,2453.7,0.13038686]
[1747667266963,4.56676136,2453.8,2453.7,0.88688686]
[1747667267114,4.56676136,2453.8,2453.7,5.45862697]
[1747667267830,4.56676136,2453.8,2453.7,1.38314913]
[1747667269341,4.56676136,2453.8,2453.7,0.13038686]
[1747667270225,8.64207312,2453.8,2453.7,0.13038686]
[1747667271227,4.56676136,2453.8,2453.7,0.13038686]
[1747667273910,4.56676136,2453.8,2453.7,4.2058647]
[1747667274117,4.56676136,2453.8,2453.7,5.0073647]
[1747667274646,4.56676136,2453.8,2453.7,5.91564946]
[1747667275148,3.0,2454.0,2453.8,4.07519495]
[1747667275334,3.0,2454.0,2453.7,1.84017162]
[1747667275536,3.0,2454.0,2453.8,4.07531118]
[1747667276131,3.0,2454.0,2453.7,5.91557158]
[1747667276330,3.0,2454.0,2453.9,0.13038686]
[1747667277422,0.005,2454.9,2454.8,4.83585162]
[1747667277657,0.005,2454.9,2454.8,48.18720219]
[1747667277855,0.005,2454.9,2454.8,48.73720219]
[1747667278121,0.005,2454.9,2454.8,48.49925926]
[1747667278340,0.005,2454.9,2454.8,49.04925926]
[1747667279335,1.61110225,2456.6,2454.8,49.04925926]
[1747667279336,0.005,2457.3,2456.0,0.55]
[1747667279560,0.005,2457.3,2456.9,0.55]
[1747667279760,0.005,2457.3,2456.7,9.1589]
[1747667279960,4.06986912,2457.1,2456.7,0.7929]
[1747667280259,4.07093961,2456.5,2455.6,16.947]
[1747667280461,8.599,2456.4,2455.7,0.7552]
[1747667280633,8.601,2456.4,2455.2,0.7552]
[1747667280962,8.601,2456.4,2455.2,1.05448888]
[1747667281161,0.8006,2456.6,2455.2,9.05448888]
[1747667281461,4.07083248,2456.5,2455.8,0.33773213]
[1747667281650,0.8006,2456.6,2455.9,4.07178256]
[1747667281964,3.06028752,2457.2,2456.0,0.55]
[1747667282163,0.005,2457.3,2456.1,0.7687]
[1747667282459,4.06993394,2457.1,2456.4,8.0]
[1747667282664,0.005,2457.3,2456.8,4.07017522]
[1747667282848,4.06967279,2457.2,2456.9,8.724]
[1747667283256,0.005,2457.3,2456.8,8.721]
[1747667283444,0.005,2457.3,2457.0,4.06990694]
[1747667283642,0.005,2457.3,2457.1,4.06981323]
[1747667283969,0.005,2457.3,2457.1,4.55467326]
[1747667284291,0.005,2457.3,2457.2,0.13015226]
[1747667284568,0.005,2457.3,2457.2,12.19982505]
[1747667284772,0.005,2457.3,2457.2,12.74982505]
[1747667284955,0.005,2457.3,2457.2,13.56762505]
[1747667285754,0.005,2457.7,2457.6,4.61901041]
[1747667285933,0.005,2457.7,2457.6,31.90502745]
[1747667286131,0.005,2457.7,2457.6,49.56017971]
[1747667286333,0.005,2457.7,2457.6,18.54735226]
[1747667286535,0.005,2457.7,2457.6,26.43815226]
[1747667287134,0.005,2457.7,2457.6,8.85115226]
[1747667287586,4.07384485,2457.7,2457.6,8.85115226]
[1747667287893,0.005,2457.7,2457.6,8.85115226]
[1747667288365,0.005,2457.7,2457.6,8.721]
[1747667289073,0.005,2457.7,2457.6,14.21211041]
[1747667289434,0.005,2457.7,2457.6,8.718]
[1747667289767,0.005,2457.7,2457.6,13.59491041]
[1747667290173,0.005,2457.7,2457.6,9.5259]
[1747667290475,0.005,2457.7,2457.6,14.27503227]
[1747667290706,0.005,2457.7,2457.6,22.27503227]
[1747667290906,0.005,2457.7,2457.6,24.90945204]
[1747667291115,0.005,2457.7,2457.6,0.93802186]
[1747667291280,0.005,2457.7,2457.6,0.13012186]
[1747667291672,0.005,2457.7,2457.6,28.05703227]
[1747667292103,0.005,2457.7,2457.6,18.58102186]
[1747667292305,0.005,2457.7,2457.6,22.65003227]
[1747667292477,0.005,2457.7,2457.6,25.4650355]
[1747667292682,0.005,2457.7,2457.6,20.84602509]
[1747667292892,0.005,2457.7,2457.6,0.13012186]
[1747667295106,0.005,2457.7,2457.6,4.19913227]
[1747667296627,0.005,2457.7,2457.6,4.74913227]
[1747667296804,0.005,2457.7,2457.6,5.51703227]
[1747667296978,0.005,2457.7,2457.6,32.05881656]
[1747667297578,1.0,2458.8,2458.3,4.06781013]
[1747667297924,4.06809533,2458.2,2457.7,8.0]
[1747667298127,4.06794866,2458.3,2458.0,8.714]
[1747667298273,4.06801596,2458.3,2458.0,8.714]
[1747667298473,4.06809384,2458.2,2458.0,8.714]
[1747667298942,4.06818274,2458.1,2458.0,8.714]
[1747667299092,4.06818274,2458.1,2457.6,19.43980615]
[1747667299291,4.0684717,2458.0,2457.6,27.38490615]
[1747667299491,4.06827689,2458.1,2457.7,0.13012186]
[1747667299729,4.0684686,2458.0,2457.7,0.13012186]
[1747667300029,4.06834834,2458.0,2457.7,1.19847192]
[1747667300335,4.8399793,2457.8,2457.7,0.13012186]
[1747667300610,12.88104745,2457.8,2457.7,0.08941186]
[1747667300817,12.8399793,2457.8,2457.7,0.08941186]
[1747667301378,4.06976728,2457.2,2456.8,0.11188612]
[1747667301578,4.0699603,2457.1,2456.8,0.55001737]
[1747667301799,8.949,2457.4,2456.8,0.55001737]
[1747667302008,4.07016972,2456.9,2456.8,0.11188612]
[1747667302520,4.89012881,2457.1,2456.8,0.11188612]
[1747667302719,4.06986146,2457.1,2456.8,0.11188612]
[1747667302917,4.06985994,2457.1,2456.8,0.11188612]
[1747667303132,4.07016972,2456.9,2456.8,0.11188612]
[1747667303736,13.79716972,2456.9,2456.8,0.11188612]
[1747667303884,4.86116972,2456.9,2456.8,0.11188612]
[1747667304086,4.07016972,2456.9,2456.8,0.11188612]
[1747667304442,4.07033539,2456.8,2456.7,0.11188612]
[1747667304940,12.86133539,2456.8,2456.7,0.11188612]
[1747667306523,4.07050107,2456.7,2456.6,0.04972097]
[1747667307016,33.00690825,2456.7,2456.6,0.04972097]
[1747667307220,32.9658401,2456.7,2456.6,0.04972097]
[1747667308750,32.9658401,2456.7,2455.7,0.33773213]
[1747667308751,12.07066677,2456.6,2455.7,0.33773213]
[1747667309054,12.89689283,2455.8,2455.7,0.33773213]
[1747667309211,30.54989283,2455.8,2455.7,0.33773213]
[1747667309870,48.12589283,2455.8,2455.7,0.33773213]
[1747667310171,12.88875618,2455.4,2455.3,0.422369]
[1747667310371,12.88875618,2455.4,2454.0,4.53806091]
[1747667310372,0.8161,2455.4,2454.0,4.53806091]
[1747667310573,0.8161,2455.4,2454.2,4.07464754]
[1747667310800,8.96,2455.7,2454.7,0.7844]
[1747667311098,4.84824151,2456.1,2455.0,4.07331975]
[1747667311274,4.84824151,2456.1,2455.3,4.07273872]
[1747667311275,8.972,2456.0,2455.3,4.07273872]
[1747667311583,8.972,2456.0,2455.5,4.07240067]
[1747667311584,13.04367016,2456.0,2455.5,4.07240067]
[1747667311784,13.04367016,2456.0,2455.4,4.07257654]
[1747667311785,4.07167016,2456.0,2455.4,4.07257654]
[1747667311987,8.969,2456.1,2455.7,4.07204616]
[1747667312137,8.966,2456.3,2454.7,4.90211732]
[1747667312339,13.03721705,2456.3,2455.5,4.07240008]
[1747667312647,13.03721705,2456.3,2455.1,0.55]
[1747667312648,4.07178071,2456.0,2455.4,4.07258951]
[1747667312887,4.07185073,2455.9,2455.4,4.07262845]
[1747667313215,4.07199959,2455.8,2455.6,0.1302446]
[1747667313388,4.07215865,2455.7,2455.6,0.1302446]
[1747667313673,9.4764,2456.4,2455.6,0.1302446]
[1747667313837,4.07134299,2456.2,2455.7,4.84608464]
[1747667314055,4.07136211,2456.2,2455.8,0.9048584]
[1747667314434,8.96,2456.5,2455.9,4.24272418]
[1747667314652,4.07079501,2456.6,2456.0,4.07151657]
[1747667314848,4.07046822,2456.8,2456.1,4.07145218]
[1747667315048,4.07041476,2456.8,2456.3,4.07115249]
[1747667315254,4.07041476,2456.8,2456.3,4.88541296]
[1747667315449,4.8445751,2457.1,2456.5,4.07070367]
[1747667315653,4.06920774,2457.5,2456.4,0.7561]
[1747667315654,0.782,2457.5,2456.4,0.7561]
[1747667315875,21.9933485,2457.4,2456.5,4.07083248]
[1747667316077,8.966,2457.4,2456.6,0.04070054]
[1747667316375,8.966,2457.4,2456.4,13.79304874]
[1747667316376,4.06934158,2457.4,2456.8,4.07024868]
[1747667316576,8.955,2457.5,2456.9,4.07012557]
[1747667316880,20.82233903,2457.9,2456.9,0.8233]
[1747667316881,8.951,2457.7,2456.9,0.8233]
[1747667317075,0.04106815,2457.6,2456.9,0.8233]
[1747667317278,4.06920567,2457.5,2456.9,0.8233]
[1747667317479,13.03434158,2457.4,2456.5,0.1302446]
[1747667317680,4.07066677,2456.6,2456.5,0.1302446]
[1747667320081,3.24033903,2457.3,2456.5,0.1302446]
[1747667320268,17.911,2457.2,2456.6,0.1302446]
[1747667320469,4.07050107,2456.7,2456.6,0.1302446]
[1747667321048,8.0,2457.1,2456.6,0.1302446]
[1747667321379,4.07044814,2456.8,2456.6,0.1302446]
[1747667321593,4.07044814,2456.8,2456.0,8.965]
[1747667321795,4.0712907,2456.3,2455.9,0.8003]
[1747667322362,4.07102089,2456.4,2456.0,0.13022103]
[1747667322363,4.07106142,2456.4,2456.0,0.13022103]
[1747667322562,8.945,2456.5,2456.0,4.20187552]
[1747667322798,4.07114897,2456.4,2456.0,0.13022103]
[1747667322981,4.07098259,2456.5,2456.0,0.13022103]
[1747667323180,8.933,2456.5,2456.0,0.72093294]
[1747667323503,13.0038806,2456.5,2456.0,0.13022103]
[1747667323665,4.07107318,2456.4,2456.0,0.13022103]
[1747667324000,4.0711843,2456.3,2456.1,0.13022103]
[1747667324202,13.00393347,2456.5,2456.1,0.13022103]
[1747667324534,4.07070819,2456.6,2456.1,4.2016224]
[1747667324668,4.56676136,2456.7,2456.2,0.82732099]
[1747667324864,4.07084618,2456.5,2456.1,0.13022103]
[1747667325090,4.07101294,2456.4,2456.1,0.13022103]
[1747667325255,4.07075147,2456.6,2456.1,4.20165585]
[1747667325599,8.63735251,2456.7,2456.2,4.20149499]
[1747667325755,4.56676136,2456.7,2456.4,4.07090414]
[1747667326090,4.06950804,2457.3,2456.7,0.8217]
[1747667326278,4.06942717,2457.4,2456.9,4.07009931]
[1747667326484,4.06953273,2457.3,2456.8,4.070246]
[1747667326676,4.0699103,2457.1,2456.7,0.8217]
[1747667326880,13.02586442,2457.7,2456.7,0.8217]
[1747667327186,4.06944285,2457.4,2456.8,4.07017415]
[1747667327386,4.06998884,2457.1,2456.8,0.48918741]
[1747667327587,4.07019534,2456.9,2456.8,0.13022103]
[1747667327887,4.06990157,2457.1,2456.8,0.13022103]
[1747667328320,4.06917791,2457.5,2456.8,0.13022103]
[1747667328491,4.06851377,2457.9,2457.3,4.06941254]
[1747667328808,4.06878098,2457.8,2457.3,4.06941254]
[1747667328988,4.06878098,2457.8,2457.4,0.13022103]
[1747667329289,4.06861498,2457.9,2457.4,4.19948062]
[1747667329509,4.06834825,2458.0,2457.4,0.13022103]
[1747667329717,4.06917599,2457.5,2457.4,0.13022103]
[1747667331420,13.06417599,2457.5,2457.4,0.13022103]
[1747667331718,4.07026479,2456.9,2456.3,8.7539]
[1747667331897,4.07023127,2456.9,2456.3,2.52569]
[1747667332093,4.07052506,2456.7,2456.3,6.59682334]
[1747667332401,4.07067863,2456.6,2456.3,2.52569]
[1747667332599,4.07074747,2456.6,2456.3,2.52569]
[1747667332904,4.07074747,2456.6,2456.3,0.7539]
[1747667333105,4.07091106,2456.5,2456.1,8.964]
[1747667333316,4.07074577,2456.6,2456.4,0.130201]
[1747667333618,4.07054141,2456.7,2456.4,0.130201]
[1747667333925,4.07056912,2456.7,2456.4,0.130201]
[1747667334603,4.07022025,2456.9,2456.4,4.20108815]
[1747667334877,4.07030357,2456.9,2456.5,0.130201]
[1747667335081,13.06001286,2457.0,2456.5,0.130201]
[1747667335282,4.07066677,2456.6,2456.5,0.130201]
[1747667335973,4.07058973,2456.7,2456.5,0.130201]
[1747667336175,4.07066677,2456.6,2456.5,0.130201]
[1747667337087,4.07058886,2456.7,2456.5,0.130201]
[1747667337291,4.06970673,2457.2,2456.5,0.17091074]
[1747667337504,4.06999364,2457.1,2456.6,4.87713227]
[1747667337806,4.06966561,2457.3,2456.8,4.07033094]
[1747667338111,4.06944481,2457.4,2456.9,4.07008068]
[1747667338406,4.0695371,2457.3,2456.9,4.07008068]
[1747667338719,4.06975361,2457.2,2457.0,0.130201]
[1747667339067,4.06960322,2457.3,2457.0,0.130201]
[1747667339267,4.06959594,2457.3,2457.0,0.130201]
[1747667339506,4.06940379,2457.4,2457.0,0.130201]
[1747667339507,4.06976967,2457.2,2457.0,0.130201]
[1747667339674,4.06983842,2457.1,2457.0,0.130201]
[1747667340185,4.07049269,2456.8,2456.6,0.8066]
[1747667340382,4.07050107,2456.7,2456.6,0.8066]
[1747667340883,4.0709982,2456.4,2456.3,0.7775]
[1747667341081,4.07066273,2456.7,2456.0,8.964]
[1747667341285,4.0711381,2456.4,2456.0,10.02863584]
[1747667341481,4.07116921,2456.3,2456.0,10.02863584]
[1747667341808,4.56676136,2456.8,2456.0,10.02863584]
[1747667341809,4.56676136,2456.8,2456.2,0.8327]
[1747667341976,13.02525621,2456.9,2456.2,0.8327]
[1747667342178,4.07046723,2456.8,2456.3,4.07109816]
[1747667342396,8.955,2456.9,2456.2,4.90396014]
[1747667342601,4.07056285,2456.7,2456.3,1.30341732]
[1747667342826,13.02524547,2456.9,2456.3,5.37448116]
[1747667343009,4.06983842,2457.1,2456.3,5.37448116]
[1747667343205,4.07022383,2456.9,2456.4,13.05294489]
[1747667343517,4.56676136,2457.2,2456.6,0.8303]
[1747667343880,4.07050107,2456.7,2456.6,0.8303]
[1747667344215,4.07019577,2456.9,2456.4,9.11221301]
[1747667344420,4.07083248,2456.5,2456.4,9.11221301]
[1747667344915,4.07083248,2456.5,2456.4,9.26363235]
[1747667345617,4.07083248,2456.5,2456.4,0.28163235]
[1747667345928,4.07116394,2456.3,2455.1,0.8303]
[1747667346080,4.82848321,2456.5,2455.2,0.87102646]
[1747667346286,4.07150182,2456.1,2455.6,4.90259429]
[1747667346485,4.07116394,2456.3,2455.6,4.90256124]
[1747667346486,4.07145151,2456.2,2455.6,4.90256124]
[1747667346817,4.07145151,2456.2,2455.7,4.07213317]
[1747667347145,4.07114346,2456.4,2455.8,4.07197244]
[1747667347326,4.07116683,2456.3,2455.9,0.40719724]
[1747667348011,4.07105419,2456.4,2455.9,0.40719724]
[1747667348612,4.07116598,2456.3,2455.9,0.40719724]
[1747667348920,4.07086541,2456.5,2455.7,8.982]
[1747667349121,4.07161265,2456.1,2455.7,8.982]
[1747667349613,4.07086541,2456.5,2455.7,8.982]
[1747667349817,4.07177008,2456.0,2455.7,8.982]
[1747667349987,4.07153196,2456.1,2455.7,8.982]
[1747667350187,4.07153196,2456.1,2455.7,10.37045925]
[1747667350388,4.07137654,2456.2,2455.7,14.44261427]
[1747667350588,8.7877,2456.8,2455.7,1.38845925]
[1747667350814,4.07113447,2456.4,2455.7,1.38845925]
[1747667351034,4.07110418,2456.4,2455.9,4.07177971]
[1747667351328,17.66746081,2456.6,2455.8,1.527406]
[1747667351528,4.07160394,2456.1,2455.6,13.885505]
[1747667351694,4.11190063,2456.5,2455.6,9.8133]
[1747667351899,4.07191047,2455.9,2455.6,9.8133]
[1747667352121,4.07098046,2456.5,2455.6,9.8133]
[1747667352325,4.07198797,2455.9,2455.6,9.8133]
[1747667352706,4.07173098,2456.0,2455.6,9.8133]
[1747667352928,4.07173098,2456.0,2455.6,10.58895792]
[1747667353230,4.0713816,2456.2,2455.6,10.58895792]
[1747667353531,4.07139796,2456.2,2455.7,4.072128]
[1747667353917,4.07134171,2456.2,2455.7,4.07206596]
[1747667354322,8.993,2456.6,2456.1,0.7976]
[1747667354507,8.0,2457.1,2456.1,0.7976]
[1747667354508,8.7627,2457.1,2456.1,0.7976]
[1747667354700,4.07052482,2456.7,2456.2,4.07123877]
[1747667354900,9.003,2457.0,2456.2,4.07123877]
[1747667354901,4.07068116,2456.6,2456.2,0.8940195]
[1747667355401,4.0707926,2456.6,2456.2,0.8940195]
[1747667355621,4.07076507,2456.6,2456.2,0.8940195]
[1747667355822,13.06521252,2456.9,2456.1,0.7976]
[1747667356024,4.07097825,2456.5,2456.1,0.7976]
[1747667356545,4.07104902,2456.4,2456.1,0.7976]
[1747667356697,4.0709363,2456.5,2456.1,0.7976]
[1747667357099,8.995,2456.9,2456.2,0.0407101]
[1747667357336,13.06523458,2456.9,2456.2,5.40289128]
[1747667357537,4.0704293,2456.8,2456.3,4.07108203]
[1747667358104,4.0704293,2456.8,2456.4,0.13019877]
[1747667358411,4.07083248,2456.5,2456.4,0.13019877]
[1747667358611,4.84653248,2456.5,2456.4,0.13019877]
[1747667358844,12.84653248,2456.5,2456.4,0.13019877]
[1747667359201,8.993,2456.6,2455.8,0.8107]
[1747667359437,4.07117597,2456.3,2455.8,0.8107]
[1747667359734,4.07085973,2456.5,2456.0,8.0]
[1747667360037,0.7757,2457.1,2456.1,1.2071733]
[1747667360038,4.07033539,2456.8,2456.1,1.2071733]
[1747667360336,0.7757,2456.8,2455.8,0.8107]
[1747667360641,4.07172796,2456.0,2455.8,9.7937]
[1747667361139,4.07173034,2456.0,2455.8,0.8107]
[1747667361319,4.07173034,2456.0,2455.6,8.983]
[1747667361320,4.07215865,2455.7,2455.6,8.983]
[1747667361637,4.07208624,2455.8,2455.6,8.983]
[1747667361805,4.07190084,2455.9,2455.6,8.983]
[1747667362238,4.0714855,2456.2,2455.6,10.86073]
[1747667362540,4.07183115,2455.9,2455.6,10.86073]
[1747667362733,4.07181665,2456.0,2455.6,8.983]
[1747667363039,4.07138293,2456.2,2455.7,8.0]
[1747667363702,4.07151243,2456.1,2455.7,8.0]
[1747667363905,4.07215865,2455.7,2455.6,8.983]
[1747667364144,4.07206306,2455.8,2455.6,8.983]
[1747667364800,4.07171141,2456.0,2455.6,8.983]
[1747667365006,4.07159557,2456.1,2455.6,14.03524775]
[1747667365207,4.07159557,2456.1,2455.6,9.96293]
[1747667365208,4.07153198,2456.1,2455.6,9.96293]
[1747667365406,4.07153198,2456.1,2455.6,14.03517439]
[1747667365846,4.07158721,2456.1,2455.8,0.7]
[1747667366064,8.943,2456.6,2455.8,0.7]
[1747667366216,4.07176493,2456.0,2455.8,0.7]
[1747667366419,4.07202204,2455.8,2455.6,9.96293]
[1747667366618,4.07192886,2455.9,2455.6,9.96293]
[1747667366831,4.07189951,2455.9,2455.6,9.96293]
[1747667367456,8.943,2456.6,2455.6,9.96293]
[1747667367457,8.983,2456.7,2455.7,9.1186404]
[1747667367628,4.07146649,2456.2,2455.7,13.14999024]
[1747667367834,4.07151618,2456.1,2455.7,1.077923]
[1747667368059,4.07171952,2456.0,2455.6,9.96293]
[1747667368263,4.0718307,2455.9,2455.6,9.96293]
[1747667369065,4.07213736,2455.8,2455.6,8.983]
[1747667369416,4.07175752,2456.0,2455.6,8.983]
[1747667370115,4.07163425,2456.1,2455.6,8.983]
[1747667370314,4.07132969,2456.2,2455.6,8.983]
[1747667370513,4.07193844,2455.9,2455.6,8.983]
[1747667370744,4.0720888,2455.8,2455.6,8.983]
[1747667372357,4.07189637,2455.9,2455.6,8.983]
[1747667372661,4.0717751,2456.0,2455.6,8.983]
[1747667372821,8.63828149,2456.1,2455.6,10.50193125]
[1747667373021,4.56676136,2456.1,2455.7,4.07202408]
[1747667373475,4.56676136,2456.1,2455.7,4.07215865]
[1747667373663,4.56676136,2456.1,2456.0,0.8204]
[1747667374241,4.07096785,2456.5,2456.0,4.89196511]
[1747667374527,4.07149546,2456.1,2456.0,0.8204]
[1747667374717,8.865,2456.6,2455.7,0.7827]